bitfinex/quotes_SOLUSD_20230702
["timestamp","ask_amount","ask_price","bid_price","bid_amount"]
[1688291098102,21.928,19.29,19.279,55.0]
[1688291098786,21.928,19.29,19.282,21.937]
[1688291099297,20.0,19.293,19.282,78.414]
[1688291099485,159.414,19.296,19.282,78.414]
[1688291099486,21.928,19.29,19.283,55.0]
[1688291099692,21.928,19.29,19.285,21.934]
[1688291099986,21.928,19.29,19.286,55.0]
[1688291100505,56.442,19.294,19.286,76.932]
[1688291100688,20.0,19.293,19.286,76.932]
[1688291101087,21.928,19.29,19.286,76.932]
[1688291101289,21.928,19.29,19.286,55.0]
[1688291101583,21.928,19.29,19.286,76.932]
[1688291102099,21.928,19.29,19.279,103.064]
[1688291102412,21.928,19.29,19.282,21.936]
[1688291103990,21.928,19.29,19.283,55.0]
[1688291104299,21.928,19.29,19.283,76.935]
[1688291105204,21.928,19.29,19.283,55.0]
[1688291106592,21.928,19.29,19.283,21.936]
[1688291106983,21.928,19.29,19.282,21.937]
[1688291107784,21.928,19.29,19.283,55.0]
[1688291107989,21.928,19.29,19.283,76.935]
[1688291109910,20.0,19.293,19.283,76.935]
[1688291110100,56.429,19.299,19.283,87.77219922]
[1688291110298,159.37,19.301,19.284,10.83719922]
[1688291110497,21.921,19.296,19.289,21.928]
[1688291110699,21.921,19.296,19.291,21.926]
[1688291110905,21.921,19.297,19.291,21.926]
[1688291111099,56.422,19.301,19.293,21.924]
[1688291111398,21.92,19.297,19.288,10.83719922]
[1688291111609,21.92,19.297,19.292,21.925]
[1688291111908,94.2819,19.309,19.293,55.0]
[1688291111909,21.917,19.3,19.293,55.0]
[1688291112205,21.918,19.299,19.293,76.924]
[1688291112403,21.918,19.299,19.293,55.0]
[1688291112613,78.345,19.299,19.287,21.931]
[1688291112807,78.345,19.299,19.286,21.931]
[1688291113795,78.345,19.299,19.29,21.928]
[1688291114111,78.345,19.299,19.291,55.0]
[1688291114405,78.345,19.299,19.291,76.926]
[1688291114614,21.918,19.299,19.291,76.926]
[1688291114990,21.918,19.299,19.291,133.377]
[1688291115196,21.918,19.299,19.291,55.0]
[1688291115498,124.876,19.299,19.284,56.422]
[1688291115700,124.876,19.299,19.286,21.932]
[1688291116203,21.918,19.299,19.286,78.397]
[1688291116409,56.411,19.305,19.287,20.0]
[1688291116701,94.2819,19.309,19.29,9.62]
[1688291116909,94.2819,19.309,19.292,78.372]
[1688291116910,78.322,19.305,19.292,78.372]
[1688291117109,78.322,19.305,19.293,55.0]
[1688291117298,78.322,19.305,19.296,21.92]
[1688291117489,78.322,19.305,19.297,55.0]
[1688291117794,95.6756,19.317,19.299,21.918]
[1688291117795,159.286,19.312,19.299,21.918]
[1688291117995,21.907,19.309,19.3,55.0]
[1688291118202,21.907,19.309,19.303,21.913]
[1688291118410,21.907,19.309,19.304,55.0]
[1688291118704,102.875,19.315,19.305,21.91]
[1688291118904,21.905,19.31,19.306,55.0]
[1688291119807,102.857,19.319,19.306,76.91]
[1688291119997,20.0,19.318,19.306,76.91]
[1688291120191,78.281,19.315,19.306,55.0]
[1688291120407,20.0,19.314,19.306,55.0]
[1688291120607,21.903,19.312,19.306,76.909]
[1688291120803,20.0,19.311,19.306,76.909]
[1688291120991,21.906,19.31,19.306,55.0]
[1688291122006,124.806,19.31,19.286,103.024]
[1688291122303,20.0,19.309,19.288,21.929]
[1688291122514,181.268,19.303,19.288,21.929]
[1688291122695,20.0,19.302,19.288,21.929]
[1688291123008,97.0381,19.309,19.281,10.83719922]
[1688291123215,21.919,19.298,19.288,78.388]
[1688291123601,21.919,19.298,19.288,21.929]
[1688291125008,21.919,19.298,19.283,10.83719922]
[1688291125202,21.919,19.298,19.283,32.77219922]
[1688291125999,21.919,19.298,19.284,10.83719922]
[1688291126305,21.919,19.298,19.288,21.93]
[1688291126505,56.411,19.305,19.291,78.377]
[1688291126709,21.916,19.301,19.292,75.0]
[1688291126914,21.915,19.302,19.294,21.923]
[1688291127096,21.915,19.302,19.297,21.92]
[1688291127599,21.915,19.302,19.298,55.0]
[1688291127793,95.352,19.313,19.298,55.0]
[1688291128015,21.915,19.302,19.298,55.0]
[1688291128215,21.915,19.302,19.296,21.92]
[1688291130609,20.0,19.301,19.295,21.922]
[1688291130911,21.918,19.3,19.295,21.922]
[1688291131305,41.917,19.301,19.295,21.922]
[1688291131618,21.917,19.301,19.295,21.922]
[1688291132803,78.338,19.301,19.284,10.83719922]
[1688291133001,78.338,19.301,19.285,55.0]
[1688291133316,78.338,19.301,19.289,21.928]
[1688291136518,78.338,19.301,19.29,55.0]
[1688291136722,21.917,19.301,19.293,21.924]
[1688291138116,91.9256,19.308,19.293,21.924]
[1688291138424,102.885,19.313,19.294,55.0]
[1688291138609,21.911,19.306,19.299,21.918]
[1688291138810,21.911,19.306,19.3,55.0]
[1688291139015,21.911,19.306,19.301,21.915]
[1688291141712,21.911,19.306,19.3,21.916]
[1688291142824,21.911,19.306,19.299,21.917]
[1688291143027,21.911,19.306,19.3,21.916]
[1688291143828,56.397,19.315,19.3,21.916]
[1688291144028,21.901,19.314,19.301,75.0]
[1688291144338,21.899,19.316,19.304,181.252]
[1688291144631,56.365,19.321,19.308,78.306]
[1688291144632,21.898,19.317,19.308,78.306]
[1688291144816,21.898,19.317,19.311,21.904]
[1688291146126,21.898,19.317,19.31,21.904]
[1688291146333,78.273,19.317,19.303,56.415]
[1688291146628,78.273,19.317,19.301,20.0]
[1688291146815,21.902,19.314,19.307,21.908]
[1688291148416,19.17,19.32,19.307,21.908]
[1688291148619,56.362,19.322,19.308,55.0]
[1688291148921,21.896,19.319,19.312,21.903]
[1688291152837,21.895,19.32,19.312,21.903]
[1688291153727,21.895,19.32,19.312,21.902]
[1688291154137,21.895,19.32,19.311,21.903]
[1688291154323,21.895,19.32,19.305,56.407]
[1688291154640,21.895,19.32,19.309,21.905]
[1688291155021,55.0,19.319,19.309,21.905]
[1688291155221,21.898,19.316,19.309,21.905]
[1688291156234,21.898,19.316,19.29,9.58]
[1688291156442,55.0,19.315,19.302,56.418]
[1688291156620,21.904,19.312,19.305,21.91]
[1688291156826,21.904,19.312,19.304,21.911]
[1688291157025,20.0,19.311,19.304,21.911]
[1688291157224,21.906,19.309,19.304,21.911]
[1688291157424,21.906,19.309,19.303,21.912]
[1688291158244,21.906,19.309,19.298,56.43]
[1688291158544,21.906,19.309,19.295,10.83719922]
[1688291158733,21.906,19.309,19.298,21.918]
[1688291159043,21.906,19.309,19.298,78.348]
[1688291159629,21.906,19.31,19.298,192.14919922]
[1688291159831,56.381,19.315,19.299,10.83719922]
[1688291160043,21.905,19.311,19.303,21.913]
[1688291161543,21.905,19.311,19.302,56.416]
[1688291161544,21.905,19.311,19.306,21.91]
[1688291161741,102.843,19.321,19.306,78.317]
[1688291161943,21.902,19.314,19.306,21.91]
[1688291162338,20.0,19.313,19.299,159.378]
[1688291162543,21.907,19.309,19.304,21.912]
[1688291162948,21.907,19.309,19.303,21.912]
[1688291164251,92.725,19.319,19.303,21.912]
[1688291164441,56.378,19.317,19.308,21.907]
[1688291164641,21.903,19.312,19.307,21.908]
[1688291166335,21.899,19.316,19.307,21.908]
[1688291166541,21.898,19.317,19.307,21.908]
[1688291167035,21.898,19.317,19.31,21.904]
[1688291168154,56.36,19.323,19.31,21.904]
[1688291168340,21.895,19.32,19.31,21.904]
[1688291168540,21.895,19.32,19.311,55.0]
[1688291168746,21.895,19.32,19.313,21.901]
[1688291169249,21.895,19.32,19.312,21.902]
[1688291169440,21.895,19.32,19.31,21.904]
[1688291176840,21.895,19.32,19.306,56.407]
[1688291177160,21.895,19.32,19.304,21.912]
[1688291177161,64.63159316,19.319,19.304,21.912]
[1688291177469,181.157,19.315,19.299,56.427]
[1688291177642,55.0,19.314,19.302,21.913]
[1688291177840,78.299,19.311,19.302,21.913]
[1688291178043,78.299,19.311,19.301,21.915]
[1688291178837,21.905,19.311,19.302,20.0]
[1688291179136,21.905,19.311,19.304,21.911]
[1688291179336,78.297,19.311,19.301,10.83719922]
[1688291179551,78.297,19.311,19.301,21.914]
[1688291185162,78.297,19.311,19.298,21.918]
[1688291186652,78.297,19.311,19.3,21.916]
[1688291187054,78.297,19.311,19.296,10.83719922]
[1688291187254,78.297,19.311,19.296,67.27019922]
[1688291188461,78.297,19.311,19.297,55.0]
[1688291188853,78.297,19.311,19.3,21.916]
[1688291196049,78.297,19.311,19.301,55.0]
[1688291196249,78.297,19.311,19.303,21.913]
[1688291196455,78.297,19.311,19.299,56.427]
[1688291196661,21.905,19.311,19.302,21.913]
[1688291196955,159.249,19.316,19.303,55.0]
[1688291197148,21.904,19.311,19.306,21.909]
[1688291197359,159.249,19.316,19.307,55.0]
[1688291197654,21.904,19.311,19.308,21.907]
[1688291198457,21.904,19.312,19.308,21.907]
[1688291199053,21.904,19.312,19.307,21.908]
[1688291199253,21.904,19.312,19.306,21.909]
[1688291201265,21.903,19.313,19.306,21.909]
[1688291203571,21.903,19.313,19.307,55.0]
[1688291203756,21.903,19.313,19.308,21.907]
[1688291204450,78.289,19.313,19.3,56.423]
[1688291204657,21.906,19.309,19.298,102.963]
[1688291204857,21.906,19.309,19.302,21.913]
[1688291206062,21.906,19.31,19.307,21.908]
[1688291206471,21.906,19.31,19.303,55.0]
[1688291206663,56.382,19.315,19.307,21.908]
[1688291207776,21.903,19.312,19.307,21.908]
[1688291208568,21.903,19.312,19.298,56.419]
[1688291208770,21.903,19.312,19.305,21.91]
[1688291210083,21.903,19.312,19.306,55.0]
[1688291210267,21.903,19.312,19.306,76.909]
[1688291211577,21.903,19.313,19.306,76.909]
[1688291211985,21.903,19.313,19.306,21.909]
[1688291212781,13.69394503,19.339,19.307,132.64801586]
[1688291212976,21.883,19.33,19.315,181.146]
[1688291213190,102.777,19.333,19.315,181.146]
[1688291213191,21.88,19.333,19.315,181.146]
[1688291213373,147.38908785,19.34,19.315,181.146]
[1688291213374,21.877,19.335,19.32,19.17]
[1688291213579,21.877,19.335,19.324,78.242]
[1688291213779,92.0368,19.339,19.325,55.0]
[1688291213978,21.875,19.337,19.329,21.883]
[1688291214366,148.3278,19.346,19.329,124.681]
[1688291214569,20.0,19.345,19.33,74.17]
[1688291214787,41.866,19.345,19.334,180.971]
[1688291215085,41.866,19.345,19.334,21.877]
[1688291215275,56.282,19.349,19.334,124.649]
[1688291215465,21.866,19.346,19.339,21.872]
[1688291215975,21.866,19.346,19.334,102.772]
[1688291215976,21.866,19.346,19.334,56.324]
[1688291216367,21.866,19.346,19.335,55.0]
[1688291216883,21.866,19.346,19.336,21.875]
[1688291217080,73.43334427,19.372,19.337,55.0]
[1688291217081,112.557,19.354,19.337,55.0]
[1688291217279,21.861,19.35,19.342,21.869]
[1688291217590,21.861,19.35,19.341,21.869]
[1688291217788,21.861,19.35,19.34,21.87]
[1688291218985,21.861,19.35,19.343,21.867]
[1688291219385,158.926,19.355,19.343,21.867]
[1688291219576,21.858,19.352,19.346,21.864]
[1688291219767,21.858,19.352,19.341,102.734]
[1688291219768,20.0,19.351,19.331,25.94283865]
[1688291219965,21.861,19.35,19.332,20.0]
[1688291220180,21.861,19.35,19.34,21.871]
[1688291220786,21.861,19.35,19.327,102.808]
[1688291220970,21.861,19.35,19.332,21.88]
[1688291220971,78.168,19.343,19.332,21.88]
[1688291221174,21.871,19.341,19.332,78.211]
[1688291221483,41.87,19.342,19.332,78.211]
[1688291221787,98.172,19.342,19.332,21.88]
[1688291222165,41.87,19.342,19.332,21.88]
[1688291222503,21.866,19.345,19.332,135.49919922]
[1688291222668,21.864,19.347,19.333,10.83719922]
[1688291222867,21.863,19.348,19.342,21.869]
[1688291223069,21.863,19.348,19.344,21.866]
[1688291223480,21.863,19.348,19.343,21.867]
[1688291223679,21.863,19.348,19.341,21.87]
[1688291224476,21.863,19.348,19.34,21.87]
[1688291224689,21.863,19.348,19.341,21.869]
[1688291224889,21.863,19.348,19.337,56.316]
[1688291225091,21.863,19.348,19.331,174.20259116]
[1688291225397,21.863,19.348,19.335,21.876]
[1688291225902,21.863,19.348,19.331,103.12269922]
[1688291226100,21.863,19.348,19.331,92.2855]
[1688291226404,21.863,19.348,19.331,170.5005]
[1688291226694,116.4689,19.348,19.331,89.05219922]
[1688291226898,116.4689,19.348,19.331,78.215]
[1688291227378,21.863,19.348,19.331,89.05219922]
[1688291227579,21.863,19.348,19.332,10.83719922]
[1688291227884,21.863,19.348,19.336,21.875]
[1688291228072,119.567,19.348,19.336,21.875]
[1688291228272,119.567,19.348,19.34,21.871]
[1688291228476,21.863,19.348,19.339,21.872]
[1688291228675,21.863,19.348,19.338,21.872]
[1688291232512,21.863,19.348,19.338,21.873]
[1688291233999,21.863,19.348,19.325,60.76962361]
[1688291234196,21.863,19.348,19.332,124.659]
[1688291234390,21.863,19.348,19.333,55.0]
[1688291234597,21.863,19.348,19.337,21.874]
[1688291235496,55.0,19.347,19.333,21.878]
[1688291235805,78.174,19.342,19.328,21.884]
[1688291236305,55.0,19.341,19.328,21.884]
[1688291236612,78.191,19.338,19.328,21.884]
[1688291236979,78.191,19.338,19.323,67.19419922]
[1688291237183,78.191,19.338,19.321,25.94860318]
[1688291237398,78.191,19.338,19.323,78.247]
[1688291242105,21.875,19.338,19.324,55.0]
[1688291242407,21.875,19.338,19.328,21.885]
[1688291243004,21.873,19.339,19.332,21.88]
[1688291243187,56.297,19.344,19.332,21.88]
[1688291243389,56.297,19.344,19.33,19.11]
[1688291243390,21.869,19.343,19.334,56.323]
[1688291244808,21.869,19.343,19.337,21.874]
[1688291245026,21.869,19.343,19.33,19.11]
[1688291245210,21.869,19.343,19.331,20.0]
[1688291245509,21.869,19.343,19.323,82.48050895]
[1688291245808,21.869,19.343,19.325,102.815]
[1688291246396,21.869,19.343,19.329,21.884]
[1688291248695,55.0,19.342,19.329,21.884]
[1688291248895,78.186,19.339,19.329,21.884]
[1688291249509,21.873,19.339,19.329,21.884]
[1688291250304,78.184,19.339,19.329,21.884]
[1688291251118,180.929,19.339,19.323,56.357]
[1688291251816,180.929,19.339,19.326,21.886]
[1688291253007,180.929,19.339,19.327,55.0]
[1688291253315,180.929,19.339,19.33,21.882]
[1688291254625,103.517828,19.348,19.331,75.0]
[1688291254837,21.866,19.345,19.336,21.876]
[1688291255309,180.872,19.345,19.326,25.90977436]
[1688291255507,78.179,19.34,19.33,21.882]
[1688291258823,21.871,19.34,19.33,21.882]
[1688291259910,21.871,19.34,19.329,21.883]
[1688291265131,21.871,19.34,19.333,21.879]
[1688291267224,124.611,19.34,19.327,21.885]
[1688291268026,99.2149,19.339,19.327,21.885]
[1688291268210,21.876,19.336,19.327,21.885]
[1688291268725,102.723,19.344,19.327,89.06819922]
[1688291268929,56.303,19.342,19.328,55.0]
[1688291269111,56.303,19.342,19.332,21.88]
[1688291269112,21.875,19.338,19.332,21.88]
[1688291269822,102.713,19.346,19.332,78.211]
[1688291270027,21.869,19.343,19.332,89.04819922]
[1688291270207,21.869,19.343,19.333,10.83719922]
[1688291270611,21.869,19.343,19.336,21.876]
[1688291271543,21.867,19.344,19.336,78.195]
[1688291271919,21.866,19.345,19.336,78.195]
[1688291272122,19.11,19.36,19.336,78.195]
[1688291272426,21.858,19.353,19.336,89.03219922]
[1688291273017,21.858,19.353,19.337,55.0]
[1688291273218,21.858,19.353,19.341,21.869]
[1688291275728,21.858,19.353,19.336,10.83719922]
[1688291275926,21.858,19.353,19.314,365.59]
[1688291275927,38.22,19.35,19.323,56.354]
[1688291276236,180.901,19.342,19.326,21.886]
[1688291276534,55.0,19.341,19.326,21.886]
[1688291276832,78.193,19.337,19.326,21.886]
[1688291278432,78.193,19.337,19.32,101.67487293]
[1688291278627,78.193,19.337,19.322,21.891]
[1688291280135,78.193,19.337,19.322,124.727]
[1688291280532,78.193,19.337,19.323,55.0]
[1688291280834,78.193,19.337,19.327,21.886]
[1688291281834,65.30645691,19.36,19.328,20.0]
[1688291282043,21.872,19.34,19.33,18.96]
[1688291282341,21.865,19.346,19.336,21.875]
[1688291282936,78.155,19.346,19.336,21.875]
[1688291283135,21.865,19.346,19.337,56.314]
[1688291283444,21.865,19.346,19.335,159.084]
[1688291283621,21.865,19.346,19.338,21.873]
[1688291283829,21.864,19.347,19.338,78.186]
[1688291284030,56.276,19.351,19.338,78.186]
[1688291284344,21.864,19.347,19.338,78.186]
[1688291284636,78.151,19.347,19.338,21.873]
[1688291284824,78.151,19.347,19.331,20.0]
[1688291285027,78.151,19.347,19.335,21.876]
[1688291285337,21.864,19.347,19.335,21.876]
[1688291285531,21.864,19.347,19.335,78.198]
[1688291287347,21.864,19.347,19.335,21.876]
[1688291287348,78.151,19.347,19.335,21.876]
[1688291287543,78.151,19.347,19.331,20.0]
[1688291287847,78.151,19.347,19.334,21.878]
[1688291290529,78.169,19.343,19.33,76.334]
[1688291290733,78.169,19.343,19.334,21.877]
[1688291291241,21.869,19.343,19.334,21.877]
[1688291292848,114.1049,19.35,19.334,21.877]
[1688291292849,21.855,19.355,19.335,20.0]
[1688291293166,21.852,19.358,19.341,180.91]
[1688291293337,21.852,19.358,19.346,78.154]
[1688291293530,21.852,19.358,19.342,55.0]
[1688291293531,21.852,19.358,19.342,10.83719922]
[1688291293744,78.128,19.353,19.337,56.316]
[1688291293954,78.128,19.353,19.342,21.868]
[1688291294144,78.128,19.353,19.341,21.869]
[1688291294333,134.444,19.353,19.341,21.869]
[1688291295156,21.861,19.349,19.341,21.869]
[1688291296239,21.861,19.349,19.34,21.87]
[1688291296630,21.861,19.349,19.334,67.16219922]
[1688291296831,55.0,19.348,19.336,21.875]
[1688291297138,78.159,19.345,19.336,21.875]
[1688291297540,21.866,19.345,19.336,21.875]
[1688291300051,19.11,19.35,19.336,180.955]
[1688291300260,55.0,19.349,19.336,180.955]
[1688291300841,21.866,19.346,19.336,180.955]
[1688291301147,21.863,19.348,19.336,180.955]
[1688291302352,21.863,19.348,19.336,78.194]
[1688291303842,21.863,19.348,19.336,21.875]
[1688291304158,124.56,19.348,19.336,21.875]
[1688291305243,21.863,19.348,19.336,21.875]
[1688291305857,55.0,19.347,19.336,21.875]
[1688291306043,21.867,19.344,19.336,21.875]
[1688291309446,124.586,19.344,19.334,21.877]
[1688291309654,124.586,19.344,19.333,21.879]
[1688291309854,20.0,19.343,19.333,21.879]
[1688291310052,21.871,19.34,19.329,56.337]
[1688291310350,21.871,19.34,19.329,21.883]
[1688291313146,78.199,19.336,19.321,159.203]
[1688291313759,78.199,19.336,19.325,21.888]
[1688291314470,20.0,19.335,19.315,102.868]
[1688291314674,78.224,19.329,19.318,21.895]
[1688291314963,78.224,19.329,19.317,21.896]
[1688291315462,78.224,19.329,19.316,21.898]
[1688291316077,78.224,19.329,19.31,44.34534958]
[1688291316258,78.224,19.329,19.311,20.0]
[1688291316573,78.224,19.329,19.315,21.898]
[1688291317768,87.98160473,19.329,19.311,20.0]
[1688291318070,21.892,19.322,19.311,10.83719922]
[1688291318273,21.89,19.324,19.314,78.283]
[1688291319158,21.89,19.324,19.314,21.9]
[1688291319474,21.89,19.324,19.314,78.283]
[1688291320872,56.34,19.329,19.314,78.283]
[1688291321055,21.887,19.327,19.319,78.263]
[1688291321257,21.887,19.327,19.322,21.892]
[1688291321473,21.885,19.328,19.322,21.892]
[1688291322375,21.885,19.329,19.322,21.892]
[1688291322595,56.322,19.335,19.323,55.0]
[1688291322779,56.322,19.335,19.325,21.887]
[1688291322780,21.881,19.332,19.325,21.887]
[1688291325977,21.881,19.332,19.325,19.387]
[1688291328577,56.312,19.339,19.326,55.0]
[1688291328884,19.09,19.35,19.33,40.992]
[1688291329180,21.867,19.344,19.331,79.29716874]
[1688291329381,21.867,19.344,19.334,78.201]
[1688291331282,78.163,19.344,19.334,21.877]
[1688291332078,21.867,19.344,19.334,21.877]
[1688291333177,56.28,19.35,19.338,21.874]
[1688291333385,21.865,19.346,19.338,21.874]
[1688291334379,251.8368,19.353,19.338,124.625]
[1688291334577,21.863,19.348,19.338,124.625]
[1688291334965,21.863,19.348,19.338,21.874]
[1688291335172,21.863,19.348,19.338,124.625]
[1688291335367,21.863,19.348,19.341,21.869]
[1688291335578,21.862,19.349,19.341,21.869]
[1688291336390,149.1648,19.353,19.342,55.0]
[1688291336391,21.857,19.353,19.342,55.0]
[1688291336688,102.637,19.36,19.348,21.862]
[1688291336689,21.856,19.354,19.348,21.862]
[1688291337494,21.856,19.354,19.347,21.863]
[1688291338188,21.855,19.355,19.347,21.863]
[1688291338381,21.855,19.355,19.346,56.287]
[1688291338382,21.855,19.355,19.35,21.86]
[1688291338783,21.855,19.355,19.343,56.297]
[1688291339185,21.855,19.355,19.348,21.861]
[1688291340789,21.854,19.356,19.348,21.861]
[1688291340992,21.854,19.356,19.352,21.857]
[1688291342892,21.854,19.356,19.349,55.0]
[1688291343087,21.854,19.356,19.348,55.0]
[1688291343289,102.607,19.366,19.352,21.858]
[1688291343478,21.848,19.361,19.356,21.852]
[1688291343681,21.848,19.361,19.35,178.053]
[1688291343886,21.848,19.361,19.354,21.855]
[1688291346095,21.848,19.361,19.35,10.83719922]
[1688291346280,78.095,19.361,19.346,102.707]
[1688291346687,17.61598278,19.37,19.346,102.707]
[1688291346889,21.848,19.361,19.35,21.859]
[1688291347616,78.095,19.361,19.35,21.859]
[1688291347803,75.595,19.361,19.35,21.859]
[1688291349694,75.595,19.361,19.34,83.42919902]
[1688291349695,180.788,19.354,19.338,21.873]
[1688291349892,180.788,19.354,19.329,102.798]
[1688291349893,20.0,19.353,19.329,102.798]
[1688291350111,180.873,19.345,19.333,21.878]
[1688291350692,180.873,19.345,19.332,21.88]
[1688291350878,180.873,19.345,19.333,21.879]
[1688291351276,180.873,19.345,19.328,56.342]
[1688291351481,55.0,19.344,19.325,56.336]
[1688291351693,55.0,19.344,19.323,102.829]
[1688291351694,20.0,19.343,19.328,21.885]
[1688291351901,78.185,19.339,19.328,21.885]
[1688291352192,78.185,19.339,19.323,159.187]
[1688291352401,78.185,19.339,19.327,21.885]
[1688291356091,78.185,19.339,19.32,56.2202915]
[1688291356380,78.185,19.339,19.325,21.887]
[1688291357091,84.223,19.341,19.325,21.887]
[1688291357291,93.98060473,19.341,19.325,21.887]
[1688291357591,78.185,19.339,19.325,78.238]
[1688291357895,78.185,19.339,19.324,21.889]
[1688291358100,78.185,19.339,19.321,85.83719922]
[1688291358296,78.185,19.339,19.323,21.889]
[1688291359489,55.0,19.338,19.323,21.889]
[1688291359789,78.206,19.334,19.323,21.889]
[1688291360282,21.879,19.334,19.323,21.889]
[1688291360686,21.879,19.334,19.323,124.719]
[1688291360994,21.879,19.334,19.324,55.0]
[1688291361304,21.879,19.334,19.327,21.886]
[1688291361896,21.879,19.334,19.327,21.357989]
[1688291362300,56.316,19.338,19.327,21.357989]
[1688291362790,21.877,19.335,19.327,21.357989]
[1688291362983,102.733,19.342,19.327,21.357989]
[1688291362984,56.308,19.34,19.327,21.357989]
[1688291363188,21.877,19.336,19.331,21.881]
[1688291363487,21.877,19.336,19.33,21.882]
[1688291363688,21.877,19.336,19.326,56.346]
[1688291363894,21.877,19.336,19.33,21.882]
[1688291365199,21.877,19.336,19.326,56.346]
[1688291365383,21.877,19.336,19.329,21.884]
[1688291367907,21.877,19.336,19.328,21.884]
[1688291371001,21.877,19.336,19.329,55.0]
[1688291371294,21.877,19.336,19.33,21.881]
[1688291371497,21.877,19.336,19.329,55.0]
[1688291371697,21.877,19.336,19.314,313.5]
[1688291371899,21.877,19.336,19.328,21.884]
[1688291372906,78.196,19.336,19.328,21.884]
[1688291375710,21.877,19.336,19.328,21.884]
[1688291377214,21.877,19.336,19.329,55.0]
[1688291377417,21.877,19.336,19.33,21.882]
[1688291377799,21.877,19.336,19.329,55.0]
[1688291378910,21.877,19.336,19.33,21.882]
[1688291379703,21.877,19.336,19.326,26.19979808]
[1688291380104,21.877,19.336,19.327,55.0]
[1688291380299,21.877,19.336,19.326,55.0]
[1688291380910,21.877,19.336,19.329,21.883]
[1688291381999,21.877,19.336,19.328,21.884]
[1688291382205,21.877,19.336,19.327,21.885]
[1688291384017,56.318,19.337,19.327,21.885]
[1688291384018,21.876,19.337,19.327,78.231]